bitfinex-derivatives/quotes_BNBF0:USTF0_20250406
["timestamp","ask_amount","ask_price","bid_price","bid_amount"]
[1743910757387,0.577,591.14,590.34,0.29118449]
[1743910757588,0.577,591.14,590.35,0.29118449]
[1743910757887,0.577,591.14,590.36,0.29118449]
[1743910758193,0.577,591.14,590.37,0.29118449]
[1743910758492,0.577,591.14,590.38,0.29118449]
[1743910758685,0.577,591.14,590.34,0.29118449]
[1743910758991,0.577,591.14,590.36,1.26423726]
[1743910759192,0.577,591.14,590.37,0.29118449]
[1743910761591,0.577,591.14,590.36,1.26423726]
[1743910761788,0.577,591.14,590.37,0.2911851]
[1743910763497,0.577,591.14,590.4,1.26423726]
[1743910763695,0.577,591.14,590.41,0.2911851]
[1743910764395,0.577,591.14,590.4,1.26423726]
[1743910764695,0.577,591.14,590.41,0.29117956]
[1743910765999,0.577,591.14,590.4,1.26423726]
[1743910766300,0.577,591.14,590.41,1.55541667]
[1743910766493,0.577,591.14,590.42,0.29117941]
[1743910766798,0.577,591.14,590.43,0.2911791]
[1743910766995,0.577,591.14,590.42,0.2911791]
[1743910767300,0.577,591.14,590.43,0.2911791]
[1743910767494,0.577,591.14,590.42,0.2911791]
[1743910768198,0.577,591.14,590.47,1.26423726]
[1743910768399,0.577,591.14,590.48,0.2911791]
[1743910769400,0.577,591.14,590.47,1.26423726]
[1743910769602,0.577,591.14,590.48,0.2911791]
[1743910770402,0.598,591.13,590.48,0.2911791]
[1743910771302,0.598,591.13,590.42,0.2911791]
[1743910771502,0.598,591.13,590.43,0.2911791]
[1743910771704,0.598,591.13,590.42,0.2911791]
[1743910772805,0.598,591.13,590.41,0.2911791]
[1743910774907,0.598,591.13,590.42,0.2911791]
[1743910775101,0.598,591.13,590.39,0.2911791]
[1743910775305,0.598,591.13,590.4,0.2911791]
[1743910775500,0.598,591.13,590.39,0.2911791]
[1743910775705,0.598,591.13,590.4,0.2911791]
[1743910776005,0.598,591.13,590.38,1.26423726]
[1743910776202,0.598,591.13,590.39,0.29117915]
[1743910777809,0.598,591.13,590.38,1.26423726]
[1743910778009,0.598,591.13,590.39,0.29117947]
[1743910779813,0.598,591.13,590.46,1.26423726]
[1743910780005,0.598,591.13,590.47,0.29117947]
[1743910781114,0.598,591.13,590.46,1.26423726]
[1743910781309,0.598,591.13,590.48,0.29117985]
[1743910781512,0.577,591.14,590.49,0.29117985]
[1743910781707,0.577,591.14,590.47,0.29117985]
[1743910781909,0.577,591.14,590.49,1.26423726]
[1743910782113,0.577,591.14,590.5,0.29117985]
[1743910782711,0.577,591.14,590.49,1.26423726]
[1743910782911,0.29450719,591.13,590.49,1.26423726]
[1743910783814,0.619,591.12,590.49,1.26423726]
[1743910784716,0.619,591.12,590.07,1.26423726]
[1743910784918,0.619,591.12,590.13,0.29126181]
[1743910786314,0.742,591.11,590.13,0.29126181]
[1743910786816,0.29456078,591.1,590.13,0.29126181]
[1743910788523,0.742,591.11,590.13,0.29126181]
[1743910788824,0.29456078,591.09,590.13,0.29126181]
[1743910789521,0.29456078,591.09,590.11,0.29456078]
[1743910789723,0.29456078,591.09,590.13,0.29126262]
[1743910791521,0.742,591.11,590.13,0.29126262]
[1743910792021,0.29456078,591.08,590.13,0.29126262]
[1743910794627,0.742,591.11,590.13,0.29126262]
[1743910794827,0.29456328,591.07,590.13,0.29126262]
[1743910795027,0.29456328,591.07,590.1,0.29456328]
[1743910795227,0.29456328,591.07,590.13,0.2912678]
[1743910797529,0.742,591.11,590.13,0.2912678]
[1743910797829,0.29456328,591.06,590.13,0.2912678]
[1743910798030,0.29456328,591.06,590.14,0.29126237]
[1743910798229,0.29456328,591.06,590.13,0.29126237]
[1743910798432,0.29456328,591.06,590.14,0.29126237]
[1743910798627,0.29456328,591.06,590.13,0.29126237]
[1743910798830,0.29456328,591.06,590.14,0.29126237]
[1743910799028,0.29456328,591.06,590.13,0.29126237]
[1743910799227,0.29456328,591.06,590.14,0.29126237]
[1743910799428,0.29456328,591.06,590.15,0.29126237]
[1743910799727,0.29456328,591.06,590.16,0.29126237]
[1743910799929,0.29456328,591.06,590.13,0.29126237]
[1743910800530,0.742,591.11,590.13,0.29126237]
[1743910800833,0.2945533,591.05,590.13,0.29126237]
[1743910801033,0.2945533,591.05,590.11,1.55879056]
[1743910801235,0.2945533,591.05,590.14,0.29126234]
[1743910801433,0.2945533,591.05,590.15,0.29126234]
[1743910801632,0.2945533,591.05,590.13,0.29126234]
[1743910801835,0.2945533,591.05,590.14,0.29126234]
[1743910802033,0.2945533,591.05,590.13,0.29126234]
[1743910803634,0.619,591.12,590.13,0.29126234]
[1743910803834,0.29455081,591.06,590.13,0.29126234]
[1743910804829,0.619,591.12,590.13,0.29126234]
[1743910806840,0.599,591.11,590.13,0.29126234]
[1743910807743,0.599,591.11,590.14,0.29119815]
[1743910807940,0.599,591.11,590.13,0.29119815]
[1743910811346,0.599,591.11,590.15,1.26423726]
[1743910811842,0.599,591.11,590.16,0.29119807]
[1743910812750,0.599,591.11,590.17,0.29119282]
[1743910812946,0.599,591.11,590.18,0.29119282]
[1743910813146,0.599,591.11,590.19,0.29119282]
[1743910813549,0.599,591.11,590.2,0.29119282]
[1743910813742,0.599,591.11,590.16,0.29119282]
[1743910814046,0.599,591.11,590.32,1.26423726]
[1743910814249,0.599,591.11,590.33,0.29119282]
[1743910814448,0.599,591.11,590.34,0.29119246]
[1743910814749,0.599,591.11,590.35,0.29119246]
[1743910815048,0.599,591.11,590.36,0.29119246]
[1743910815251,0.599,591.11,590.33,0.29119246]
[1743910816651,0.668,591.1,590.34,1.26423726]
[1743910816853,0.668,591.1,590.35,0.29119246]
[1743910817756,0.668,591.1,590.34,1.26423726]
[1743910817949,0.668,591.1,590.35,0.29116596]
[1743910818356,0.668,591.1,590.35,1.55540322]
[1743910818555,0.668,591.1,590.36,0.29116596]
[1743910819457,0.668,591.1,590.37,0.29116152]
[1743910819652,0.668,591.1,590.36,0.29116152]
[1743910819956,0.668,591.1,590.37,0.29116152]
[1743910820156,0.668,591.1,590.36,0.29116152]
[1743910820352,0.668,591.1,590.38,0.29116152]
[1743910820557,0.668,591.1,590.39,0.29116152]
[1743910820757,0.668,591.1,590.36,0.29116152]
[1743910820953,0.668,591.1,590.35,1.26423726]
[1743910821158,0.668,591.1,590.36,0.29116191]
[1743910821861,0.668,591.1,590.26,0.29116191]
[1743910822757,0.668,591.1,590.24,0.29448102]
[1743910823059,0.668,591.1,590.25,0.29116109]
[1743910824754,0.668,591.1,590.24,0.58565706]
[1743910824958,0.668,591.1,590.25,0.29116109]
[1743910826059,0.668,591.1,590.24,0.29449597]
[1743910826260,0.668,591.1,590.25,0.29114133]
[1743910826756,0.668,591.1,590.24,0.29449597]
[1743910827059,0.668,591.1,590.25,0.29113969]
[1743910827757,0.668,591.1,590.24,0.29449348]
[1743910827959,0.668,591.1,590.25,0.29114359]
[1743910830756,0.668,591.1,590.13,0.29114359]
[1743910830952,0.668,591.1,590.24,0.2945022]
[1743910831158,0.668,591.1,590.25,0.29114359]
[1743910831559,0.668,591.1,590.26,0.62997732]
[1743910831760,0.668,591.1,590.27,0.62997158]
[1743910831959,0.668,591.1,590.28,0.62996584]
[1743910832361,0.668,591.1,590.29,0.29114359]
[1743910832858,0.668,591.1,590.28,0.33882225]
[1743910833062,0.668,591.1,590.29,0.29108229]
[1743910833458,0.668,591.1,590.3,0.33881077]
[1743910833759,0.668,591.1,590.31,0.29108229]
[1743910834163,0.668,591.1,590.31,0.62988732]
[1743910834356,0.668,591.1,590.32,0.29108229]
[1743910834560,0.668,591.1,590.33,0.29106617]
[1743910834760,0.668,591.1,590.32,0.29106617]
[1743910834960,0.668,591.1,590.33,0.29106617]
[1743910835365,0.668,591.1,590.33,1.55530343]
[1743910835565,0.668,591.1,590.34,0.29106617]
[1743910835762,0.599,591.11,590.34,0.29106617]
[1743910837966,0.599,591.11,590.34,0.62985398]
[1743910838168,0.599,591.11,590.35,0.62984824]
[1743910838363,0.599,591.11,590.36,0.6298425]
[1743910838563,0.687,591.1,590.37,0.3387706]
[1743910838767,0.687,591.1,590.38,0.29106617]
[1743910838969,0.687,591.1,590.39,0.33875912]
[1743910839166,0.687,591.1,590.4,0.29106617]
[1743910839363,0.687,591.1,590.41,0.33874764]
[1743910839570,0.687,591.1,590.42,0.29106617]
[1743910839771,0.687,591.1,590.43,0.33873617]
[1743910839970,0.687,591.1,590.44,0.29106617]
[1743910843971,0.687,591.1,590.44,0.6297966]
[1743910844372,0.687,591.1,590.34,0.29441002]
[1743910844373,0.687,591.1,590.45,0.62979087]
[1743910844674,0.687,591.1,590.46,0.29106617]
[1743910846173,0.687,591.1,590.45,0.3387247]
[1743910846174,0.687,591.1,590.47,0.290993]
[1743910846375,0.687,591.1,590.46,0.290993]
[1743910849066,0.687,591.1,590.47,0.33871322]
[1743910849273,0.687,591.1,590.48,0.290993]
[1743910852475,0.687,591.1,590.49,0.290993]
[1743910852675,0.687,591.1,590.5,0.290993]
[1743910852877,0.687,591.1,590.51,0.290993]
[1743910853076,0.687,591.1,590.52,0.290993]
[1743910853276,0.687,591.1,590.53,0.290993]
[1743910853577,0.687,591.1,590.54,0.290993]
[1743910853777,0.687,591.1,590.55,0.290993]
[1743910853970,0.687,591.1,590.48,0.290993]
[1743910854175,0.687,591.1,590.49,0.290993]
[1743910854371,0.687,591.1,590.5,0.290993]
[1743910854575,0.687,591.1,590.51,0.290993]
[1743910854771,0.687,591.1,590.52,0.290993]
[1743910854973,0.687,591.1,590.53,0.290993]
[1743910855173,0.687,591.1,590.47,0.63310456]
[1743910855376,0.687,591.1,590.48,1.55524544]
[1743910855576,0.687,591.1,590.49,0.29100818]
[1743910855779,0.599,591.11,590.5,0.29100818]
[1743910855977,0.599,591.11,590.51,0.29100818]
[1743910856178,0.599,591.11,590.52,0.29100818]
[1743910856378,0.599,591.11,590.53,0.29100818]
[1743910856578,0.599,591.11,590.54,0.29100818]
[1743910856781,0.599,591.11,590.55,0.29100818]
[1743910857078,0.599,591.11,590.56,0.29100818]
[1743910857374,0.599,591.11,590.57,0.29100818]
[1743910857579,0.599,591.11,590.55,0.29100818]
[1743910857776,1.51618276,592.3,590.56,0.29100818]
[1743910857973,0.29439134,591.49,590.55,0.29100818]
[1743910858277,0.596,591.48,590.55,0.29100818]
[1743910859176,0.596,591.48,590.56,1.26423726]
[1743910859382,0.596,591.48,590.57,0.29100818]
[1743910861180,0.568,591.47,590.56,1.26423726]
[1743910861381,0.568,591.47,590.57,0.29101619]
[1743910861876,0.568,591.47,590.57,1.55525345]
[1743910862081,0.568,591.47,590.58,0.29101619]
[1743910864486,0.568,591.47,590.59,0.29101127]
[1743910864681,0.568,591.47,590.56,0.29101127]
[1743910864882,0.568,591.47,590.57,0.29101127]
[1743910865086,0.568,591.47,590.56,0.29101127]
[1743910865385,0.568,591.47,590.57,0.29101127]
[1743910865586,0.568,591.47,590.56,0.29101127]
[1743910865786,0.568,591.47,590.57,0.29101127]
[1743910865986,0.568,591.47,590.61,1.26423726]
[1743910866186,0.568,591.47,590.62,0.29101127]
[1743910866787,0.29435897,591.46,590.62,0.29101127]
[1743910868888,0.29435897,591.46,590.57,0.29101127]
[1743910869086,0.29435897,591.46,590.63,0.29101127]
[1743910869388,0.29435897,591.46,590.56,1.26423726]
[1743910869589,0.568,591.47,590.57,0.29103248]
[1743910870585,0.568,591.47,590.62,1.26423726]
[1743910870889,0.29436519,591.46,590.63,0.29103248]
[1743910871090,0.29436519,591.46,590.62,1.26423726]
[1743910871291,0.29436519,591.46,590.63,0.29103382]
[1743910872491,0.568,591.47,590.63,1.55527108]
[1743910872691,0.568,591.47,590.64,0.29103382]
[1743910872893,0.29435897,591.45,590.64,0.29103382]
[1743910874996,0.29435897,591.45,590.66,1.26423726]
[1743910875292,0.29435897,591.45,590.67,0.29103382]
[1743910875693,0.568,591.47,590.67,0.29103382]
[1743910875890,0.29435399,591.44,590.67,0.29103382]
[1743910877398,0.29435399,591.44,590.68,1.26423726]
[1743910877598,0.29435399,591.44,590.69,0.29103382]
[1743910878499,0.568,591.47,590.69,0.29103382]
[1743910878800,0.2943515,591.43,590.69,0.29103382]
[1743910879400,0.2943515,591.43,590.71,1.26423726]
[1743910879597,0.2943515,591.43,590.72,0.29103382]
[1743910881405,0.2943515,591.43,590.73,0.29103679]
[1743910881607,0.568,591.47,590.68,0.29103679]
[1743910881905,0.29435274,591.42,590.68,0.29103679]
[1743910883706,0.29435274,591.42,590.68,1.55527405]
[1743910883900,0.29435274,591.42,590.69,0.29103679]
[1743910884206,0.721,591.41,590.69,0.29103679]
[1743910884806,0.29435897,591.4,590.69,0.29103679]
[1743910885907,0.29435897,591.4,590.69,1.55527405]
[1743910886107,0.29435897,591.4,590.7,0.29103679]
[1743910886704,0.681,591.39,590.69,1.26423726]
[1743910886907,0.681,591.39,590.7,0.29103657]
[1743910888303,0.681,591.39,590.71,0.29103789]
[1743910888505,0.681,591.39,590.7,0.29103789]
[1743910891006,0.681,591.39,590.67,0.29103789]
[1743910891508,0.681,591.39,590.66,1.26423726]
[1743910891809,0.681,591.39,590.67,0.29103709]
[1743910893308,0.681,591.39,590.66,1.26423726]
[1743910893506,0.681,591.39,590.67,0.29103709]
[1743910895013,0.681,591.39,590.66,1.26423726]
[1743910895213,0.681,591.39,590.67,0.29103699]
[1743910895610,0.681,591.39,590.66,0.29103699]
[1743910895813,0.681,591.39,590.67,0.29103699]
[1743910896114,0.681,591.39,590.68,0.29103699]
[1743910896313,0.681,591.39,590.66,0.29103699]
[1743910896512,0.681,591.39,590.69,0.29103699]
[1743910896815,0.681,591.39,590.7,0.29103699]
[1743910897014,0.681,591.39,590.66,0.29103699]
[1743910897210,0.681,591.39,590.71,0.29103699]
[1743910897410,0.681,591.39,590.72,0.29103699]
[1743910897611,0.681,591.39,590.67,0.29103699]
[1743910897812,0.681,591.39,590.68,0.29103699]
[1743910898015,0.681,591.39,590.67,0.29103699]
[1743910898413,0.681,591.39,590.66,1.26423726]
[1743910898618,0.681,591.39,590.67,0.29103638]
[1743910899218,0.681,591.39,590.72,1.26423726]
[1743910899412,0.681,591.39,590.73,0.29103638]
[1743910901620,0.681,591.39,590.73,1.55527364]
[1743910901821,0.681,591.39,590.74,0.29103638]
[1743910903517,0.681,591.39,590.75,1.26423726]
[1743910903722,0.681,591.39,590.76,0.29103638]
[1743910905020,0.625,591.38,590.76,0.29103638]
[1743910905524,0.625,591.38,590.73,0.29103638]
[1743910907424,0.625,591.38,590.72,1.26423726]
[1743910907622,0.625,591.38,590.75,1.26423726]
[1743910907923,0.625,591.38,590.76,0.2910293]
[1743910908525,0.625,591.38,590.75,1.26423726]
[1743910908725,0.625,591.38,590.76,0.29103026]
[1743910909527,0.625,591.38,590.73,0.29103026]
[1743910911729,0.625,591.38,590.72,1.26423726]
[1743910911930,0.625,591.38,590.73,0.29102934]
[1743910912432,0.625,591.38,590.62,1.26423726]
[1743910912632,0.625,591.38,590.63,0.29101475]
[1743910913530,0.625,591.38,590.62,1.26423726]
[1743910913731,0.625,591.38,590.63,0.29101488]
[1743910914431,0.625,591.38,590.64,1.26423726]
[1743910914631,0.625,591.38,590.65,0.29101488]
[1743910915131,0.625,591.38,590.64,1.26423726]
[1743910915536,0.625,591.38,590.65,0.29098753]
[1743910917031,0.625,591.38,590.55,0.29098753]
[1743910917735,0.625,591.38,590.53,0.29098753]
[1743910918035,0.625,591.38,590.54,0.58532782]
[1743910918232,0.625,591.38,590.55,0.29098753]
[1743910918635,0.625,591.38,590.54,0.29434029]
[1743910918833,0.625,591.38,590.55,0.29097158]
[1743910920734,0.625,591.38,590.54,0.29097158]
[1743910920927,0.625,591.38,590.54,0.58531063]
[1743910921134,0.625,591.38,590.55,0.29097158]
[1743910921430,0.625,591.38,590.54,0.29433905]
[1743910921635,0.625,591.38,590.56,0.29098481]
[1743910921835,0.625,591.38,590.57,0.29098481]
[1743910922036,0.625,591.38,590.55,0.29098481]
[1743910922237,0.625,591.38,590.56,0.29098451]
[1743910922535,0.625,591.38,590.57,0.29098451]
[1743910922736,0.625,591.38,590.55,0.29098451]
[1743910922931,0.625,591.38,590.56,0.29098451]
[1743910923137,0.625,591.38,590.55,0.29098451]
[1743910923732,0.625,591.38,590.51,0.29098451]
[1743910923935,0.625,591.38,590.54,0.29434278]
[1743910924235,0.625,591.38,590.55,0.29098451]
[1743910927037,0.625,591.38,590.56,0.29098451]
[1743910927334,0.625,591.38,590.57,0.29098451]
[1743910927538,0.625,591.38,590.55,0.29098451]
[1743910927835,0.625,591.38,590.56,0.29098451]
[1743910928032,0.625,591.38,590.55,0.29098451]
[1743910928233,0.625,591.38,590.54,0.29433905]
[1743910928436,0.625,591.38,590.55,0.29098442]
[1743910929040,0.625,591.38,590.68,1.26423726]
[1743910929340,0.625,591.38,590.69,0.29098442]
[1743910932740,0.625,591.38,590.68,1.26423726]
[1743910932940,0.625,591.38,590.69,0.29098503]
[1743910934841,0.625,591.38,590.68,1.26423726]
[1743910935047,0.625,591.38,590.69,0.29096929]
[1743910935246,0.681,591.39,590.69,0.29096929]
[1743910937152,0.681,591.39,590.7,1.26423726]
[1743910937555,0.681,591.39,590.71,0.29096929]
[1743910938253,0.681,591.39,590.7,1.26423726]
[1743910938449,0.681,591.39,590.71,0.29096817]
[1743910938646,0.61,591.38,590.71,0.29096817]
[1743910938847,0.61,591.38,590.64,0.29431664]
[1743910939052,0.61,591.38,590.65,0.29096817]
[1743910939855,0.61,591.38,590.64,0.29431664]
[1743910940050,0.61,591.38,590.65,0.29093935]
[1743910941455,0.61,591.38,590.64,0.29431664]
[1743910941756,0.61,591.38,590.65,0.29092358]
[1743910942048,0.61,591.38,590.66,0.29092358]
[1743910942254,0.61,591.38,590.65,0.29092358]
[1743910944754,0.61,591.38,590.57,0.29092358]
[1743910944955,0.61,591.38,590.66,0.29092358]
[1743910945256,0.61,591.38,590.67,0.29092358]
[1743910945459,0.61,591.38,590.59,0.29092358]
[1743910945653,0.61,591.38,590.59,0.62956798]
[1743910945854,0.61,591.38,590.6,0.58523649]
[1743910946057,0.61,591.38,590.64,1.26423726]
[1743910946252,0.61,591.38,590.65,0.29092358]
[1743910946553,0.61,591.38,590.64,1.26423726]
[1743910946761,0.61,591.38,590.65,0.29092513]
[1743910948860,0.61,591.38,590.68,1.26423726]
[1743910949160,0.61,591.38,590.69,0.29092513]
[1743910949455,0.61,591.38,590.7,0.29092513]
[1743910949655,0.61,591.38,590.71,0.29092513]
[1743910949858,0.61,591.38,590.72,0.29092513]
[1743910950055,0.61,591.38,590.68,1.26423726]
[1743910950261,0.61,591.38,590.69,0.29092644]
[1743910950455,0.61,591.38,590.7,0.29092644]
[1743910950656,0.61,591.38,590.82,1.26423726]
[1743910950861,0.756,591.37,590.89,1.26423726]
[1743910951061,0.756,591.37,590.9,0.29092644]
[1743910952457,0.756,591.37,590.89,0.29092644]
[1743910954859,0.756,591.37,590.71,0.29092644]
[1743910956869,0.756,591.37,590.72,1.26423726]
[1743910957069,0.756,591.37,590.73,0.29092644]
[1743910958571,0.756,591.37,590.72,1.26423726]
[1743910958873,0.756,591.37,590.73,0.2909264]
[1743910961372,0.756,591.37,590.74,0.2909264]
[1743910961570,0.756,591.37,590.75,0.2909264]
[1743910961771,0.756,591.37,590.73,1.26423726]
[1743910962068,0.756,591.37,590.74,0.29089614]
[1743910962267,0.756,591.37,590.75,0.29089614]
[1743910962472,0.756,591.37,590.73,1.26423726]
[1743910962673,0.756,591.37,590.74,0.29090042]
[1743910962873,0.756,591.37,590.75,0.29090042]
[1743910963077,0.756,591.37,590.91,1.26423726]
[1743910963270,0.513,591.36,590.92,0.29090042]
[1743910964274,0.513,591.36,590.91,1.26423726]
[1743910965175,0.513,591.36,590.83,1.26423726]
[1743910965375,0.513,591.36,590.84,0.29096345]
[1743910966778,0.513,591.36,590.83,1.26423726]
[1743910966970,0.513,591.36,590.84,0.29096872]
[1743910967580,0.513,591.36,590.85,0.29096982]
[1743910967778,0.513,591.36,590.68,0.29096982]
[1743910968077,0.513,591.36,590.69,0.29096982]
[1743910968278,0.513,591.36,590.68,0.29096982]
[1743910969779,0.513,591.36,590.69,0.29096982]
[1743910970079,0.513,591.36,590.7,0.29096982]
[1743910970279,0.513,591.36,590.62,1.26423726]
[1743910970473,0.513,591.36,590.63,0.29097252]
[1743910971776,0.513,591.36,590.64,1.26423726]
[1743910971979,0.513,591.36,590.65,0.29097152]
[1743910973683,0.513,591.36,590.73,1.26423726]
[1743910973880,0.513,591.36,590.74,0.29097949]
[1743910976482,0.513,591.36,590.73,0.29097949]
[1743910977778,0.513,591.36,590.72,1.26423726]
[1743910977982,0.513,591.36,590.73,0.29097517]
[1743910978383,0.513,591.36,590.72,1.26423726]
[1743910978584,0.513,591.36,590.73,0.29097437]
[1743910978880,0.513,591.36,590.72,1.26423726]
[1743910979086,0.513,591.36,590.79,1.26423726]
[1743910981880,0.513,591.36,590.35,1.26423726]
[1743910982081,0.513,591.36,590.6,0.29102459]
[1743910984280,0.513,591.36,590.61,0.29106481]
[1743910984480,0.513,591.36,590.6,0.29106481]
[1743910984782,0.513,591.36,590.61,0.29106481]
[1743910984984,0.513,591.36,590.6,0.29106481]
[1743910985879,0.513,591.36,590.61,0.2910656]
[1743910986079,0.513,591.36,590.6,0.2910656]
[1743910988085,0.513,591.36,590.47,0.29438013]
[1743910988285,0.513,591.36,590.6,0.29104931]
[1743910990890,0.513,591.36,590.47,0.29438013]
[1743910991091,0.513,591.36,590.6,0.29103686]
[1743910991391,0.756,591.37,590.6,0.29103686]
[1743910992492,0.756,591.37,590.47,0.29438013]
[1743910992686,0.756,591.37,590.61,0.29100786]
[1743910992892,0.756,591.37,590.62,0.29100786]
[1743910993092,0.756,591.37,590.6,0.29100786]
[1743910994793,0.651,591.36,590.6,0.29100786]
[1743910995893,0.651,591.36,590.47,0.29438138]
[1743910996093,0.651,591.36,590.6,0.29103029]
[1743910998198,0.651,591.36,590.5,1.26423726]
[1743910998393,0.651,591.36,590.6,0.29104139]
[1743911004401,0.651,591.36,590.53,1.26423726]
[1743911004601,0.651,591.36,590.6,0.29100388]
[1743911005900,0.651,591.36,590.6,1.55524114]
[1743911006103,0.651,591.36,590.61,0.29101975]
[1743911007605,0.651,591.36,590.6,1.26423726]
[1743911007804,0.651,591.36,590.61,0.29101247]
[1743911008704,0.651,591.36,590.6,0.29101247]
[1743911008904,0.651,591.36,590.61,0.29101247]
[1743911009106,0.651,591.36,590.6,0.29101247]
[1743911009404,0.651,591.36,590.61,0.29101247]
[1743911009605,0.651,591.36,590.6,0.29101247]
[1743911010200,0.746,591.35,590.6,0.29101247]
[1743911011009,0.746,591.35,590.59,0.3386444]
[1743911011307,0.746,591.35,590.62,1.26423726]
[1743911011509,0.746,591.35,590.63,0.2909958]
[1743911013308,0.746,591.35,590.62,1.26423726]
[1743911013508,0.746,591.35,590.64,0.29099424]
[1743911013710,0.746,591.35,590.65,0.29099424]
[1743911013905,0.746,591.35,590.63,0.29099424]
[1743911014106,0.746,591.35,590.67,1.26423726]
[1743911014306,0.746,591.35,590.68,0.29099424]
[1743911016807,0.746,591.35,590.69,1.26423726]
[1743911017005,0.746,591.35,590.7,0.29099424]
[1743911019417,0.746,591.35,590.69,1.26423726]
[1743911019612,0.746,591.35,590.7,0.29092947]
[1743911022113,0.746,591.35,590.69,0.29092947]
[1743911022315,0.746,591.35,590.7,0.29092947]
[1743911022515,0.746,591.35,590.69,0.29092947]
[1743911022717,0.746,591.35,590.7,0.29092947]
[1743911022917,0.746,591.35,590.69,0.29092947]
[1743911023217,0.746,591.35,590.7,0.29092947]
[1743911023418,0.746,591.35,590.69,0.29092947]
[1743911023810,0.746,591.35,590.64,0.29092947]
[1743911024317,0.746,591.35,590.63,1.26423726]
[1743911024513,0.746,591.35,590.64,0.29092415]
[1743911025918,0.746,591.35,590.74,1.26423726]
[1743911026117,0.746,591.35,590.75,0.29092415]
[1743911027320,0.662,591.34,590.75,0.29092415]
[1743911028717,0.662,591.34,590.74,0.29092415]
[1743911028918,0.662,591.34,590.75,0.29092415]
[1743911029115,0.662,591.34,590.76,0.29092415]
[1743911029415,0.662,591.34,590.77,0.29095426]
[1743911029616,0.662,591.34,590.78,0.29095426]
[1743911029815,0.662,591.34,590.74,0.29095426]
[1743911030015,0.662,591.34,590.75,0.29095426]
[1743911030215,0.662,591.34,590.76,0.29095426]
[1743911030416,0.662,591.34,590.74,0.29095426]
[1743911030613,0.662,591.34,590.77,0.29095426]
[1743911030816,0.662,591.34,590.78,0.29095426]
[1743911031019,0.662,591.34,590.7,0.29095426]
[1743911032220,0.662,591.34,590.71,1.26423726]
[1743911032724,0.662,591.34,590.72,0.29095362]
[1743911033126,0.662,591.34,590.71,1.26423726]
[1743911033320,0.662,591.34,590.72,0.2909454]
[1743911034223,0.662,591.34,590.71,1.26423726]
[1743911034420,0.662,591.34,590.72,0.29094556]
[1743911035326,0.662,591.34,590.72,1.55518282]
[1743911035523,0.662,591.34,590.73,0.29094556]
[1743911037527,0.662,591.34,590.72,1.26423726]
[1743911037728,0.662,591.34,590.73,0.29086755]
[1743911038228,0.662,591.34,590.74,0.29086755]
[1743911038428,0.662,591.34,590.71,1.26423726]
[1743911038429,0.662,591.34,590.72,0.29086755]
[1743911038630,0.662,591.34,590.73,0.29086755]
[1743911038828,0.662,591.34,590.72,0.29086755]
[1743911039026,0.662,591.34,590.73,0.29086755]
[1743911039329,0.662,591.34,590.72,0.29086755]
[1743911039628,0.662,591.34,590.73,0.29086755]
[1743911039925,0.662,591.34,590.74,1.55510481]
[1743911040225,0.662,591.34,590.75,0.29086755]
[1743911040429,0.746,591.35,590.75,0.29086755]
[1743911042229,0.746,591.35,590.75,1.55510481]
[1743911042423,0.746,591.35,590.76,0.29086755]
[1743911043831,0.802,591.34,590.76,0.29086755]
[1743911044732,0.802,591.34,590.77,0.29086755]
[1743911045134,0.802,591.34,590.78,0.29086755]
[1743911045434,0.802,591.34,590.79,0.29086755]
[1743911045634,0.802,591.34,590.72,0.29086755]